fUSD/lending_fUSD_20260621
["ID","MTS","AMOUNT","RATE_DAILY","PERIOD"]
[425873804,1782013853000,-500.0,0.00029589,2]
[425873805,1782013853000,-500.0,0.00029589,2]
[425873807,1782013853000,-500.0,0.00029589,2]
[425873806,1782013853000,-1631.14,0.00029589,2]
[425873809,1782013853000,-500.0,0.00029589,2]
[425873754,1782013853000,-500.0,0.00029589,2]
[425873786,1782013853000,-500.0,0.00029589,2]
[425873787,1782013853000,-500.0,0.00029589,2]
[425873808,1782013853000,-500.0,0.00029589,2]
[425873783,1782013853000,-500.0,0.00029589,2]
[425873782,1782013853000,-500.0,0.00029589,2]
[425873760,1782013853000,-500.0,0.00029589,2]
[425873756,1782013853000,-500.0,0.00029589,2]
[425873766,1782013853000,-918.67,0.00029589,2]
[425873765,1782013853000,-500.0,0.00029589,2]
[425873811,1782013853000,-610.54,0.00029589,2]
[425873758,1782013853000,-500.0,0.00029589,2]
[425873761,1782013853000,-500.0,0.00029589,2]
[425873763,1782013853000,-500.0,0.00029589,2]
[425873767,1782013853000,-218.20538389,0.00029589,2]
[425873757,1782013853000,-500.0,0.00029589,2]
[425873764,1782013853000,-500.0,0.00029589,2]
[425873768,1782013853000,-500.0,0.00029589,2]
[425873769,1782013853000,-884.2,0.00029589,2]
[425873770,1782013853000,-1173.97,0.00029589,2]
[425873785,1782013853000,-511.66,0.00029589,2]
[425873776,1782013853000,-525.95,0.00029589,2]
[425873778,1782013853000,-801.08,0.00029589,2]
[425873777,1782013853000,-647.43,0.00029589,2]
[425873780,1782013853000,-500.0,0.00029589,2]
[425873779,1782013853000,-500.0,0.00029589,2]
[425873774,1782013853000,-1032.52,0.00029589,2]
[425873773,1782013853000,-500.0,0.00029589,2]
[425873771,1782013853000,-500.0,0.00029589,2]
[425873772,1782013853000,-500.0,0.00029589,2]
[425873775,1782013853000,-500.0,0.00029589,2]
[425873849,1782013854000,-558.37,0.00029589,2]
[425873840,1782013854000,-500.0,0.00029589,2]
[425873847,1782013854000,-500.0,0.00029589,2]
[425873838,1782013854000,-564.34087094,0.00029589,2]
[425873841,1782013854000,-500.0,0.00029589,2]
[425873843,1782013854000,-455.0957104,0.00029589,2]
[425873844,1782013854000,-523.14,0.00029589,2]
[425873842,1782013854000,-872.58,0.00029589,2]
[425873845,1782013854000,-775.47,0.00029589,2]
[425873846,1782013854000,-500.0,0.00029589,2]
[425873854,1782013854000,-550.83217389,0.00029589,2]
[425873851,1782013854000,-500.0,0.00029589,2]
[425873850,1782013854000,-500.0,0.00029589,2]
[425873861,1782013854000,-500.0,0.00029589,2]
[425873852,1782013854000,-500.0,0.00029589,2]
[425873853,1782013854000,-500.0,0.00029589,2]
[425873857,1782013854000,-500.0,0.00029589,2]
[425873855,1782013854000,-500.0,0.00029589,2]
[425873856,1782013854000,-500.0,0.00029589,2]
[425873859,1782013854000,-500.0,0.00029589,2]
[425873839,1782013854000,-500.0,0.00029589,2]
[425873848,1782013854000,-500.0,0.00029589,2]
[425873833,1782013854000,-500.0,0.00029589,2]
[425873822,1782013854000,-500.0,0.00029589,2]
[425873832,1782013854000,-500.0,0.00029589,2]
[425873860,1782013854000,-500.0,0.00029589,2]
[425873815,1782013854000,-5180.59,0.00029589,2]
[425873814,1782013854000,-500.0,0.00029589,2]
[425873813,1782013854000,-500.0,0.00029589,2]
[425873817,1782013854000,-500.0,0.00029589,2]
[425873812,1782013854000,-685.15,0.00029589,2]
[425873816,1782013854000,-500.0,0.00029589,2]
[425873818,1782013854000,-500.0,0.00029589,2]
[425873819,1782013854000,-500.0,0.00029589,2]
[425873824,1782013854000,-500.0,0.00029589,2]
[425873821,1782013854000,-2244.17,0.00029589,2]
[425873820,1782013854000,-527.2,0.00029589,2]
[425873823,1782013854000,-500.0,0.00029589,2]
[425873826,1782013854000,-500.0,0.00029589,2]
[425873835,1782013854000,-531.91,0.00029589,2]
[425873836,1782013854000,-500.0,0.00029589,2]
[425873825,1782013854000,-500.0,0.00029589,2]
[425873827,1782013854000,-500.0,0.00029589,2]
[425873831,1782013854000,-500.0,0.00029589,2]
[425873828,1782013854000,-500.0,0.00029589,2]
[425873829,1782013854000,-500.0,0.00029589,2]
[425873837,1782013854000,-578.89,0.00029589,2]
[425873830,1782013854000,-500.0,0.00029589,2]
[425873834,1782013854000,-500.0,0.00029589,2]
[425873862,1782013854000,-500.0,0.00029589,2]
[425873858,1782013854000,-1139.19,0.00029589,2]
[425873864,1782013854000,-500.0,0.00029589,2]
[425873894,1782013854000,-209.16447524,0.00029589,2]
[425873892,1782013854000,-500.0,0.00029589,2]
[425873889,1782013854000,-500.0,0.00029589,2]
[425873895,1782013854000,-500.0,0.00029589,2]
[425873899,1782013854000,-500.0,0.00029589,2]
[425873901,1782013854000,-500.0,0.00029589,2]
[425873898,1782013854000,-500.0,0.00029589,2]
[425873896,1782013854000,-500.0,0.00029589,2]
[425873900,1782013854000,-500.0,0.00029589,2]
[425873897,1782013854000,-500.0,0.00029589,2]
[425873891,1782013854000,-500.0,0.00029589,2]
[425873902,1782013854000,-784.68,0.00029589,2]
[425873905,1782013854000,-500.0,0.00029589,2]
[425873913,1782013854000,-500.0,0.00029589,2]
[425873907,1782013854000,-500.0,0.00029589,2]
[425873906,1782013854000,-500.0,0.00029589,2]
[425873908,1782013854000,-500.0,0.00029589,2]
[425873911,1782013854000,-500.0,0.00029589,2]
[425873912,1782013854000,-743.4,0.00029589,2]
[425873909,1782013854000,-500.0,0.00029589,2]
[425873910,1782013854000,-500.0,0.00029589,2]
[425873870,1782013854000,-500.0,0.00029589,2]
[425873903,1782013854000,-500.0,0.00029589,2]
[425873890,1782013854000,-500.0,0.00029589,2]
[425873904,1782013854000,-516.09836533,0.00029589,2]
[425873888,1782013854000,-500.0,0.00029589,2]
[425873872,1782013854000,-500.0,0.00029589,2]
[425873893,1782013854000,-500.0,0.00029589,2]
[425873865,1782013854000,-500.0,0.00029589,2]
[425873869,1782013854000,-500.0,0.00029589,2]
[425873873,1782013854000,-500.0,0.00029589,2]
[425873866,1782013854000,-500.0,0.00029589,2]
[425873863,1782013854000,-500.0,0.00029589,2]
[425873868,1782013854000,-500.0,0.00029589,2]
[425873871,1782013854000,-500.0,0.00029589,2]
[425873874,1782013854000,-687.66,0.00029589,2]
[425873886,1782013854000,-500.0,0.00029589,2]
[425873867,1782013854000,-566.74,0.00029589,2]
[425873883,1782013854000,-616.94,0.00029589,2]
[425873887,1782013854000,-500.0,0.00029589,2]
[425873878,1782013854000,-606.62,0.00029589,2]
[425873875,1782013854000,-500.0,0.00029589,2]
[425873879,1782013854000,-500.0,0.00029589,2]
[425873877,1782013854000,-500.0,0.00029589,2]
[425873880,1782013854000,-500.0,0.00029589,2]
[425873885,1782013854000,-500.0,0.00029589,2]
[425873881,1782013854000,-500.0,0.00029589,2]
[425873882,1782013854000,-500.0,0.00029589,2]
[425873876,1782013854000,-541.97361361,0.00029589,2]
[425873884,1782013854000,-500.0,0.00029589,2]
[425873952,1782013855000,-500.0,0.00029589,2]
[425873960,1782013855000,-500.0,0.00029589,2]
[425873947,1782013855000,-500.0,0.00029589,2]
[425873962,1782013855000,-500.0,0.00029589,2]
[425873961,1782013855000,-500.0,0.00029589,2]
[425873951,1782013855000,-500.0,0.00029589,2]
[425873946,1782013855000,-500.0,0.00029589,2]
[425873948,1782013855000,-500.0,0.00029589,2]
[425873943,1782013855000,-559.44,0.00029589,2]
[425873945,1782013855000,-561.35195207,0.00029589,2]
[425873959,1782013855000,-3313.43,0.00029589,2]
[425873944,1782013855000,-638.77,0.00029589,2]
[425873956,1782013855000,-507.28434922,0.00029589,2]
[425873972,1782013855000,-500.0,0.00029589,2]
[425873953,1782013855000,-736.73,0.00029589,2]
[425873954,1782013855000,-880.09,0.00029589,2]
[425873958,1782013855000,-500.0,0.00029589,2]
[425873955,1782013855000,-520.84297556,0.00029589,2]
[425873964,1782013855000,-500.0,0.00029589,2]
[425873974,1782013855000,-500.0,0.00029589,2]
[425873975,1782013855000,-500.0,0.00029589,2]
[425873963,1782013855000,-500.0,0.00029589,2]
[425873967,1782013855000,-500.0,0.00029589,2]
[425873969,1782013855000,-500.0,0.00029589,2]
[425873965,1782013855000,-500.0,0.00029589,2]
[425873968,1782013855000,-869.54,0.00029589,2]
[425873942,1782013855000,-500.0,0.00029589,2]
[425873957,1782013855000,-852.05,0.00029589,2]
[425873941,1782013855000,-500.0,0.00029589,2]
[425873914,1782013855000,-500.0,0.00029589,2]
[425873950,1782013855000,-515.08,0.00029589,2]
[425873923,1782013855000,-606.91552918,0.00029589,2]
[425873915,1782013855000,-500.0,0.00029589,2]
[425873925,1782013855000,-500.0,0.00029589,2]
[425873917,1782013855000,-500.0,0.00029589,2]
[425873924,1782013855000,-500.0,0.00029589,2]
[425873916,1782013855000,-500.0,0.00029589,2]
[425873918,1782013855000,-500.0,0.00029589,2]
[425873920,1782013855000,-500.0,0.00029589,2]
[425873921,1782013855000,-500.0,0.00029589,2]
[425873919,1782013855000,-500.0,0.00029589,2]
[425873922,1782013855000,-608.87,0.00029589,2]
[425873930,1782013855000,-500.0,0.00029589,2]
[425873937,1782013855000,-728.07,0.00029589,2]
[425873927,1782013855000,-177.21327122,0.00029589,2]
[425873926,1782013855000,-1098.37,0.00029589,2]
[425873934,1782013855000,-734.05,0.00029589,2]
[425873933,1782013855000,-506.93,0.00029589,2]
[425873929,1782013855000,-535.05,0.00029589,2]
[425873932,1782013855000,-500.0,0.00029589,2]
[425873931,1782013855000,-500.0,0.00029589,2]
[425873928,1782013855000,-646.67,0.00029589,2]
[425873936,1782013855000,-790.09,0.00029589,2]
[425873966,1782013855000,-500.0,0.00029589,2]
[425873935,1782013855000,-500.0,0.00029589,2]
[425873939,1782013855000,-528.09,0.00029589,2]
[425873949,1782013855000,-500.0,0.00029589,2]
[425873938,1782013855000,-487.55007699,0.00029589,2]
[425873940,1782013855000,-603.34240209,0.00029589,2]
[425873970,1782013855000,-500.0,0.00029589,2]
[425874009,1782013855000,-500.0,0.00029589,2]
[425873973,1782013855000,-500.0,0.00029589,2]
[425874008,1782013855000,-527.19,0.00029589,2]
[425874010,1782013855000,-585.48,0.00029589,2]
[425874012,1782013855000,-500.0,0.00029589,2]
[425874011,1782013855000,-500.0,0.00029589,2]
[425874014,1782013855000,-844.5,0.00029589,2]
[425874015,1782013855000,-500.0,0.00029589,2]
[425874013,1782013855000,-500.0,0.00029589,2]
[425874025,1782013855000,-500.0,0.00029589,2]
[425874024,1782013855000,-500.0,0.00029589,2]
[425874016,1782013855000,-500.0,0.00029589,2]
[425874017,1782013855000,-500.0,0.00029589,2]
[425874018,1782013855000,-814.25,0.00029589,2]
[425874020,1782013855000,-500.0,0.00029589,2]
[425874022,1782013855000,-500.0,0.00029589,2]
[425874023,1782013855000,-702.77,0.00029589,2]
[425874019,1782013855000,-801.57,0.00029589,2]
[425874026,1782013855000,-500.0,0.00029589,2]
[425874029,1782013855000,-500.0,0.00029589,2]
[425874030,1782013855000,-1092.23,0.00029589,2]
[425874028,1782013855000,-500.0,0.00029589,2]
[425874031,1782013855000,-500.0,0.00029589,2]
[425874027,1782013855000,-500.0,0.00029589,2]
[425874033,1782013855000,-500.0,0.00029589,2]
[425874035,1782013855000,-500.0,0.00029589,2]
[425874032,1782013855000,-500.0,0.00029589,2]
[425874034,1782013855000,-904.05,0.00029589,2]
[425873971,1782013855000,-701.53,0.00029589,2]
[425874006,1782013855000,-500.0,0.00029589,2]
[425874007,1782013855000,-500.0,0.00029589,2]
[425874021,1782013855000,-500.0,0.00029589,2]
[425874004,1782013855000,-817.63,0.00029589,2]
[425873977,1782013855000,-500.0,0.00029589,2]
[425874002,1782013855000,-500.0,0.00029589,2]
[425873976,1782013855000,-500.0,0.00029589,2]
[425873987,1782013855000,-300.0,0.00029589,2]
[425873978,1782013855000,-592.69,0.00029589,2]
[425873988,1782013855000,-500.0,0.00029589,2]
[425873985,1782013855000,-500.0,0.00029589,2]
[425873981,1782013855000,-5709.41,0.00029589,2]
[425873979,1782013855000,-500.0,0.00029589,2]
[425873980,1782013855000,-616.72,0.00029589,2]
[425873983,1782013855000,-500.0,0.00029589,2]
[425873986,1782013855000,-500.0,0.00029589,2]
[425873982,1782013855000,-1000.0,0.00029589,2]
[425873990,1782013855000,-500.0,0.00029589,2]
[425873984,1782013855000,-6854.81,0.00029589,2]
[425873999,1782013855000,-617.88,0.00029589,2]
[425874000,1782013855000,-500.0,0.00029589,2]
[425873991,1782013855000,-1672.96,0.00029589,2]
[425873992,1782013855000,-516.65137119,0.00029589,2]
[425873993,1782013855000,-543.92,0.00029589,2]
[425874003,1782013855000,-747.33,0.00029589,2]
[425873994,1782013855000,-500.0,0.00029589,2]
[425873995,1782013855000,-624.26,0.00029589,2]
[425873998,1782013855000,-500.0,0.00029589,2]
[425873996,1782013855000,-500.0,0.00029589,2]
[425873997,1782013855000,-500.0,0.00029589,2]
[425874001,1782013855000,-500.0,0.00029589,2]
[425873989,1782013855000,-500.0,0.00029589,2]
[425874005,1782013855000,-179.35791562,0.00029589,3]
[425874084,1782013856000,-508.6064196,0.00029589,2]
[425874068,1782013856000,-500.0,0.00029589,2]
[425874078,1782013856000,-500.0,0.00029589,2]
[425874085,1782013856000,-952.49,0.00029589,2]
[425874081,1782013856000,-500.0,0.00029589,2]
[425874074,1782013856000,-505.26110415,0.00029589,2]
[425874075,1782013856000,-500.0,0.00029589,2]
[425874070,1782013856000,-500.0,0.00029589,2]
[425874069,1782013856000,-188.68566805,0.00029589,2]
[425874072,1782013856000,-500.0,0.00029589,2]
[425874073,1782013856000,-500.0,0.00029589,2]
[425874086,1782013856000,-500.0,0.00029589,2]
[425874071,1782013856000,-500.0,0.00029589,2]
[425874082,1782013856000,-609.23,0.00029589,2]
[425874093,1782013856000,-158.54836382,0.00029589,30]
[425874087,1782013856000,-500.0,0.00029589,2]
[425874083,1782013856000,-523.29,0.00029589,2]
[425874080,1782013856000,-500.0,0.00029589,2]
[425874088,1782013856000,-500.83916894,0.00029589,2]
[425874090,1782013856000,-500.0,0.00029589,2]
[425874089,1782013856000,-500.0,0.00029589,2]
[425874092,1782013856000,-506.8881253,0.00029589,2]
[425874102,1782013856000,-651.43404441,0.00029725,2]
[425874091,1782013856000,-7269.77,0.00029589,2]
[425874095,1782013856000,-159.78287953,0.00029614,2]
[425874097,1782013856000,-651.43404442,0.00029725,2]
[425874096,1782013856000,-651.43404442,0.00029725,2]
[425874098,1782013856000,-651.43404442,0.00029725,2]
[425874065,1782013856000,-500.0,0.00029589,2]
[425874079,1782013856000,-500.0,0.00029589,2]
[425874067,1782013856000,-846.33,0.00029589,2]
[425874039,1782013856000,-741.12,0.00029589,2]
[425874077,1782013856000,-500.0,0.00029589,2]
[425874036,1782013856000,-500.0,0.00029589,2]
[425874037,1782013856000,-504.49839347,0.00029589,2]
[425874099,1782013856000,-651.43404442,0.00029725,2]
[425874049,1782013856000,-261.74655818,0.00029589,2]
[425874050,1782013856000,-626.55,0.00029589,2]
[425874051,1782013856000,-422.9340936,0.00029589,2]
[425874040,1782013856000,-500.0,0.00029589,2]
[425874041,1782013856000,-500.0,0.00029589,2]
[425874044,1782013856000,-3923.16,0.00029589,2]
[425874046,1782013856000,-500.0,0.00029589,2]
[425874043,1782013856000,-500.0,0.00029589,2]
[425874047,1782013856000,-500.0,0.00029589,2]
[425874045,1782013856000,-500.0,0.00029589,2]
[425874042,1782013856000,-582.57,0.00029589,2]
[425874048,1782013856000,-500.0,0.00029589,2]
[425874059,1782013856000,-500.0,0.00029589,2]
[425874063,1782013856000,-500.0,0.00029589,2]
[425874062,1782013856000,-500.0,0.00029589,2]
[425874053,1782013856000,-758.84,0.00029589,2]
[425874055,1782013856000,-1312.08,0.00029589,2]
[425874060,1782013856000,-500.0,0.00029589,2]
[425874064,1782013856000,-500.0,0.00029589,2]
[425874061,1782013856000,-500.0,0.00029589,2]
[425874052,1782013856000,-500.0,0.00029589,2]
[425874054,1782013856000,-500.0,0.00029589,2]
[425874058,1782013856000,-7914.34,0.00029589,2]
[425874057,1782013856000,-500.0,0.00029589,2]
[425874056,1782013856000,-1065.67,0.00029589,2]
[425874066,1782013856000,-500.0,0.00029589,2]
[425874076,1782013856000,-500.0,0.00029589,2]
[425874094,1782013856000,-161.69469409,0.00029589,30]
[425874038,1782013856000,-1188.54,0.00029589,2]
[425874101,1782013856000,-651.43404441,0.00029725,2]
[425874136,1782013856000,-500.0,0.00029863,2]
[425874139,1782013856000,-502.59586822,0.00029863,2]
[425874131,1782013856000,-651.43404441,0.00029862,2]
[425874138,1782013856000,-500.0,0.00029863,2]
[425874141,1782013856000,-500.0,0.00029863,2]
[425874142,1782013856000,-500.0,0.00029863,2]
[425874144,1782013856000,-500.0,0.00029863,2]
[425874146,1782013856000,-500.0,0.00029863,2]
[425874154,1782013856000,-500.0,0.00029863,2]
[425874156,1782013856000,-500.0,0.00029863,2]
[425874143,1782013856000,-553.70156533,0.00029863,2]
[425874155,1782013856000,-500.0,0.00029863,2]
[425874147,1782013856000,-500.0,0.00029863,2]
[425874148,1782013856000,-626.5,0.00029863,2]
[425874137,1782013856000,-500.0,0.00029863,2]
[425874150,1782013856000,-601.5,0.00029863,2]
[425874153,1782013856000,-500.0,0.00029863,2]
[425874152,1782013856000,-500.0,0.00029863,2]
[425874149,1782013856000,-820.99,0.00029863,2]
[425874157,1782013856000,-959.52,0.00029863,2]
[425874161,1782013856000,-500.0,0.00029863,2]
[425874159,1782013856000,-500.0,0.00029863,2]
[425874160,1782013856000,-645.72,0.00029863,2]
[425874165,1782013856000,-500.0,0.00029863,2]
[425874163,1782013856000,-524.45342663,0.00029863,2]
[425874166,1782013856000,-977.38,0.00029863,2]
[425874158,1782013856000,-500.0,0.00029863,2]
[425874162,1782013856000,-500.0,0.00029863,2]
[425874164,1782013856000,-500.0,0.00029863,2]
[425874100,1782013856000,-651.43404441,0.00029725,2]
[425874151,1782013856000,-500.0,0.00029863,2]
[425874140,1782013856000,-500.0,0.00029863,2]
[425874145,1782013856000,-500.0,0.00029863,2]
[425874134,1782013856000,-651.43404441,0.00029862,2]
[425874103,1782013856000,-651.43404441,0.00029725,2]
[425874135,1782013856000,-651.43404441,0.00029862,2]
[425874105,1782013856000,-651.43404441,0.00029725,2]
[425874110,1782013856000,-200.0,0.00029813,2]
[425874106,1782013856000,-651.43404441,0.00029725,2]
[425874108,1782013856000,-651.43404441,0.00029725,2]
[425874109,1782013856000,-1700.0,0.000298,10]
[425874107,1782013856000,-651.43404441,0.00029725,2]
[425874114,1782013856000,-500.0,0.00029862,2]
[425874111,1782013856000,-2203.652023,0.00029835,3]
[425874112,1782013856000,-500.0,0.00029862,2]
[425874113,1782013856000,-500.0,0.00029862,2]
[425874115,1782013856000,-500.0,0.00029862,2]
[425874117,1782013856000,-500.0,0.00029862,2]
[425874127,1782013856000,-651.43404441,0.00029862,2]
[425874104,1782013856000,-651.43404441,0.00029725,2]
[425874128,1782013856000,-651.43404441,0.00029862,2]
[425874132,1782013856000,-651.43404441,0.00029862,2]
[425874129,1782013856000,-651.43404441,0.00029862,2]
[425874130,1782013856000,-651.43404441,0.00029862,2]
[425874126,1782013856000,-651.43404442,0.00029862,2]
[425874121,1782013856000,-610.51,0.00029862,2]
[425874123,1782013856000,-651.43404442,0.00029862,2]
[425874124,1782013856000,-651.43404442,0.00029862,2]
[425874133,1782013856000,-651.43404441,0.00029862,2]
[425874122,1782013856000,-610.51,0.00029862,2]
[425874119,1782013856000,-500.0,0.00029862,2]
[425874125,1782013856000,-651.43404442,0.00029862,2]
[425874118,1782013856000,-500.0,0.00029862,2]
[425874116,1782013856000,-500.0,0.00029862,2]
[425874120,1782013856000,-610.51,0.00029862,2]
[425874211,1782013857000,-694.09,0.00029863,2]
[425874215,1782013857000,-500.0,0.00029863,2]
[425874207,1782013857000,-500.0,0.00029863,2]
[425874204,1782013857000,-1062.93,0.00029863,2]
[425874206,1782013857000,-500.0,0.00029863,2]
[425874201,1782013857000,-500.0,0.00029863,2]
[425874208,1782013857000,-500.0,0.00029863,2]
[425874202,1782013857000,-500.0,0.00029863,2]
[425874205,1782013857000,-500.0,0.00029863,2]
[425874199,1782013857000,-500.0,0.00029863,2]
[425874210,1782013857000,-528.4692821,0.00029863,2]
[425874213,1782013857000,-500.0,0.00029863,2]
[425874203,1782013857000,-554.73,0.00029863,2]
[425874214,1782013857000,-595.28282994,0.00029863,2]
[425874230,1782013857000,-500.0,0.00029863,2]
[425874218,1782013857000,-500.0,0.00029863,2]
[425874212,1782013857000,-526.10653019,0.00029863,2]
[425874219,1782013857000,-500.0,0.00029863,2]
[425874220,1782013857000,-601.78,0.00029863,2]
[425874216,1782013857000,-500.0,0.00029863,2]
[425874217,1782013857000,-557.64332669,0.00029863,2]
[425874221,1782013857000,-500.0,0.00029863,2]
[425874223,1782013857000,-500.0,0.00029863,2]
[425874225,1782013857000,-500.0,0.00029863,2]
[425874224,1782013857000,-500.0,0.00029863,2]
[425874226,1782013857000,-499.13764294,0.00029863,2]
[425874227,1782013857000,-500.0,0.00029863,2]
[425874228,1782013857000,-500.0,0.00029863,2]
[425874200,1782013857000,-500.0,0.00029863,2]
[425874222,1782013857000,-500.0,0.00029863,2]
[425874209,1782013857000,-500.0,0.00029863,2]
[425874170,1782013857000,-500.0,0.00029863,2]
[425874193,1782013857000,-500.0,0.00029863,2]
[425874233,1782013857000,-509.90902738,0.00029863,2]
[425874168,1782013857000,-516.6018067,0.00029863,2]
[425874167,1782013857000,-500.0,0.00029863,2]
[425874169,1782013857000,-562.22,0.00029863,2]
[425874182,1782013857000,-500.0,0.00029863,2]
[425874172,1782013857000,-500.0,0.00029863,2]
[425874183,1782013857000,-500.0,0.00029863,2]
[425874173,1782013857000,-500.0,0.00029863,2]
[425874171,1782013857000,-500.0,0.00029863,2]
[425874175,1782013857000,-387.20516566,0.00029863,2]
[425874174,1782013857000,-824.18,0.00029863,2]
[425874178,1782013857000,-1027.02,0.00029863,2]
[425874180,1782013857000,-903.13,0.00029863,2]
[425874176,1782013857000,-500.0,0.00029863,2]
[425874198,1782013857000,-500.0,0.00029863,2]
[425874179,1782013857000,-921.8,0.00029863,2]
[425874177,1782013857000,-500.0,0.00029863,2]
[425874185,1782013857000,-500.0,0.00029863,2]
[425874184,1782013857000,-500.0,0.00029863,2]
[425874186,1782013857000,-500.0,0.00029863,2]
[425874197,1782013857000,-500.0,0.00029863,2]
[425874196,1782013857000,-500.0,0.00029863,2]
[425874195,1782013857000,-500.0,0.00029863,2]
[425874187,1782013857000,-707.99,0.00029863,2]
[425874191,1782013857000,-500.0,0.00029863,2]
[425874192,1782013857000,-500.0,0.00029863,2]
[425874188,1782013857000,-500.0,0.00029863,2]
[425874189,1782013857000,-500.0,0.00029863,2]
[425874194,1782013857000,-500.0,0.00029863,2]
[425874190,1782013857000,-500.0,0.00029863,2]
[425874181,1782013857000,-500.0,0.00029863,2]
[425874231,1782013857000,-488.28925274,0.00029863,2]
[425874247,1782013857000,-156.01520065,0.00029863,2]
[425874232,1782013857000,-500.0,0.00029863,2]
[425874266,1782013857000,-500.0,0.00029863,2]
[425874267,1782013857000,-500.0,0.00029863,2]
[425874262,1782013857000,-500.0,0.00029863,2]
[425874272,1782013857000,-396.38899399,0.00029863,2]
[425874269,1782013857000,-577.8763875,0.00029863,2]
[425874271,1782013857000,-500.0,0.00029863,2]
[425874270,1782013857000,-500.0,0.00029863,2]
[425874286,1782013857000,-500.0,0.00029863,2]
[425874284,1782013857000,-500.0,0.00029863,2]
[425874280,1782013857000,-500.0,0.00029863,2]
[425874281,1782013857000,-526.39376755,0.00029863,2]
[425874288,1782013857000,-500.0,0.00029863,2]
[425874277,1782013857000,-784.61,0.00029863,2]
[425874276,1782013857000,-513.04212272,0.00029863,2]
[425874279,1782013857000,-500.0,0.00029863,2]
[425874282,1782013857000,-500.0,0.00029863,2]
[425874278,1782013857000,-507.94656041,0.00029863,2]
[425874285,1782013857000,-500.0,0.00029863,2]
[425874287,1782013857000,-644.30770988,0.00029863,2]
[425874283,1782013857000,-500.0,0.00029863,2]
[425874290,1782013857000,-500.0,0.00029863,2]
[425874289,1782013857000,-500.0,0.00029863,2]
[425874229,1782013857000,-500.0,0.00029863,2]
[425874296,1782013857000,-500.0,0.00029863,2]
[425874295,1782013857000,-500.0,0.00029863,2]
[425874292,1782013857000,-500.0,0.00029863,2]
[425874294,1782013857000,-500.0,0.00029863,2]
[425874293,1782013857000,-500.0,0.00029863,2]
[425874291,1782013857000,-500.0,0.00029863,2]
[425874264,1782013857000,-500.0,0.00029863,2]
[425874268,1782013857000,-500.0,0.00029863,2]
[425874297,1782013857000,-510.54716095,0.00029863,2]
[425874273,1782013857000,-500.0,0.00029863,2]
[425874265,1782013857000,-500.0,0.00029863,2]
[425874235,1782013857000,-509.31389567,0.00029863,2]
[425874243,1782013857000,-500.0,0.00029863,2]
[425874245,1782013857000,-500.0,0.00029863,2]
[425874244,1782013857000,-500.0,0.00029863,2]
[425874246,1782013857000,-658.33,0.00029863,2]
[425874241,1782013857000,-500.0,0.00029863,2]
[425874238,1782013857000,-500.0,0.00029863,2]
[425874237,1782013857000,-184.61297053,0.00029863,2]